bitfinex-derivatives/quotes_SOLF0:USTF0_20250831
["timestamp","ask_amount","ask_price","bid_price","bid_amount"]
[1756680843630,42.54,203.94,203.87,7.39]
[1756680844425,42.54,203.94,203.87,11.47924597]
[1756680845127,0.05,203.96,203.88,11.47924597]
[1756680845330,0.05,203.96,203.88,7.39]
[1756680845831,2.19629289,203.96,203.88,7.39]
[1756680846229,0.05,203.92,203.85,4.08924597]
[1756680846539,0.05,203.92,203.84,4.08924597]
[1756680847230,0.05,203.92,203.83,11.47924597]
[1756680848540,0.05,203.92,203.81,7.59313008]
[1756680848541,2.14629289,203.98,203.88,7.84]
[1756680848731,0.02,203.96,203.88,7.84]
[1756680849136,2.14629289,203.95,203.88,7.84]
[1756680849333,0.02,203.94,203.88,7.84]
[1756680849536,2.16629289,203.94,203.88,7.84]
[1756680851933,0.02,203.93,203.83,11.92924597]
[1756680853040,0.02,203.93,203.83,7.84]
[1756680855844,0.02,203.97,203.83,7.84]
[1756680856032,2.14629289,203.95,203.86,7.84]
[1756680857444,2.0,203.96,203.86,7.84]
[1756680858540,2.0,203.96,203.88,2.14629289]
[1756680858741,0.02,203.97,203.89,7.84]
[1756680861642,2.14629289,203.95,203.89,7.84]
[1756680861847,0.02,203.94,203.85,7.84]
[1756680864345,0.85400869,203.97,203.85,9.98629289]
[1756680864540,329.8,204.0,203.85,9.98629289]
[1756680864541,329.8,204.0,203.89,7.84]
[1756680864745,413.18,204.0,203.89,7.84]
[1756680865548,413.18,204.0,203.89,9.98629289]
[1756680865747,413.18,204.0,203.9,7.84]
[1756680867944,413.18,204.0,203.92,2.14629289]
[1756680868150,413.18,204.0,203.93,7.84]
[1756680868547,415.32629289,204.0,203.93,7.84]
[1756680868748,2.16629289,203.97,203.89,7.84]
[1756680868953,2.16629289,203.92,203.83,11.92924597]
[1756680869146,123.1,203.91,203.83,7.84]
[1756680873444,123.42,203.92,203.85,7.84]
[1756680880452,123.42,203.92,203.85,11.92924597]
[1756680882253,123.42,203.92,203.87,4.08924597]
[1756680882456,0.03,203.91,203.87,4.08924597]
[1756680885154,123.42,203.92,203.87,4.08924597]
[1756680885352,0.03,203.91,203.87,11.93924597]
[1756680885954,0.03,203.95,203.88,7.85]
[1756680886259,0.03,203.98,203.91,4.08924597]
[1756680886552,0.03,203.98,203.92,4.08924597]
[1756680886955,0.03,203.98,203.91,4.08924597]
[1756680887653,2.14629289,203.98,203.9,11.93924597]
[1756680887858,2.14629289,203.95,203.89,4.08924597]
[1756680888058,0.03,203.94,203.89,4.08924597]
[1756680888247,0.03,203.97,203.89,4.08924597]
[1756680888452,2.14629289,203.98,203.89,4.08924597]
[1756680888658,0.03,203.97,203.89,4.08924597]
[1756680890854,2.14629289,203.93,203.88,4.08924597]
[1756680891055,123.1,203.92,203.87,4.08924597]
[1756680891256,123.1,203.92,203.85,4.08924597]
[1756680891557,0.03,203.91,203.85,4.08924597]
[1756680891762,2.14629289,203.9,203.85,4.08924597]
[1756680891958,0.03,203.89,203.82,4.08924597]
[1756680895553,2.99988263,203.98,203.81,7.85]
[1756680895554,0.03,203.86,203.81,7.85]
[1756680895757,123.24,203.86,203.8,4.08924597]
[1756680895955,123.24,203.86,203.81,7.85]
[1756680896154,123.24,203.86,203.8,11.93924597]
[1756680898563,2.14629289,203.87,203.8,11.93924597]
[1756680898763,123.12,203.86,203.8,11.93924597]
[1756680899162,123.12,203.86,203.8,7.85]
[1756680899559,2.14629289,203.87,203.8,7.85]
[1756680899766,27.16,203.86,203.8,7.85]
[1756680900067,2.14629289,203.87,203.8,7.85]
[1756680900255,18.74,203.86,203.8,7.85]
[1756680902563,0.03,203.85,203.79,4.08924597]
[1756680904970,0.03,203.85,203.79,11.93924597]
[1756680906264,17.71988263,203.98,203.8,7.85]
[1756680906468,2.17629289,203.89,203.8,7.85]
[1756680906670,70.48,203.88,203.8,7.85]
[1756680907263,0.03,203.87,203.8,7.85]
[1756680907471,2.14629289,203.86,203.8,7.85]
[1756680908170,0.03,203.87,203.8,7.85]
[1756680908368,2.17629289,203.9,203.8,7.85]
[1756680908566,2.17629289,203.9,203.78,2.14629289]
[1756680908567,92.04,203.89,203.82,7.82]
[1756680909569,120.89629289,203.9,203.82,7.82]
[1756680910270,2.17629289,203.9,203.82,7.82]
[1756680910470,125.29629289,203.9,203.82,7.82]
[1756680911272,125.29629289,203.9,203.82,11.90924597]
[1756680911868,2.17629289,203.9,203.82,11.90924597]
[1756680912072,2.14629289,203.93,203.83,7.82]
[1756680912373,0.03,203.94,203.85,7.82]
[1756680912571,0.03,203.94,203.87,7.82]
[1756680912870,2.17629289,203.94,203.87,7.82]
[1756680915683,82.58,203.93,203.87,7.82]
[1756680916481,121.53,203.94,203.87,7.82]
[1756680917284,2.14629289,203.93,203.87,7.82]
[1756680917883,0.03,203.89,203.83,4.08924597]
[1756680918086,2.14629289,203.86,203.8,4.08924597]
[1756680918693,26.26629289,203.86,203.8,4.08924597]
[1756680920491,26.26629289,203.86,203.79,7.82]
[1756680920984,0.03,203.85,203.79,7.82]
[1756680926597,24.12,203.86,203.79,7.82]
[1756680929797,0.02,203.85,203.79,7.82]
[1756680929993,2.16629289,203.84,203.78,7.82]
[1756680931498,0.02,203.88,203.78,7.82]
[1756680931792,54.42,203.87,203.78,7.82]
[1756680932201,2.16629289,203.85,203.78,11.90924597]
[1756680934393,85.36,203.84,203.78,4.08924597]
[1756680934598,112.32,203.85,203.79,7.82]
[1756680935202,112.32,203.85,203.79,11.90924597]
[1756680936998,0.02,203.87,203.79,11.90924597]
[1756680937203,123.12,203.86,203.79,11.90924597]
[1756680937697,2.16629289,203.87,203.8,7.82]
[1756680937901,125.28629289,203.87,203.8,11.90924597]
[1756680939694,0.02,203.87,203.8,11.90924597]
[1756680940001,123.14,203.87,203.8,11.90924597]
[1756680942099,123.14,203.87,203.8,7.82]
[1756680944096,123.12,203.87,203.8,11.90924597]
[1756680944400,123.12,203.87,203.81,4.08924597]
[1756680945599,2.14629289,203.85,203.81,4.08924597]
[1756680945799,0.02,203.84,203.8,11.54924597]
[1756680945998,2.14629289,203.85,203.8,11.54924597]
[1756680946191,0.02,203.84,203.8,11.54924597]
[1756680947900,123.12,203.87,203.8,11.54924597]
[1756680949404,0.02,203.87,203.8,11.54924597]
[1756680949608,33.02,203.87,203.81,4.08924597]
[1756680949808,33.02,203.87,203.81,11.54924597]
[1756680951108,33.02,203.87,203.81,7.46]
[1756680952509,33.02,203.87,203.81,11.54924597]
[1756680953308,33.02,203.87,203.81,7.46]
[1756680956012,108.1,203.87,203.81,11.54924597]
[1756680960413,2.14629289,203.9,203.82,7.46]
[1756680960712,0.02,203.9,203.84,4.08924597]
[1756680961209,125.18629289,203.91,203.85,4.08924597]
[1756680961414,0.02,203.9,203.84,4.08924597]
[1756680962312,125.20629289,203.91,203.84,11.54924597]
[1756680964514,2.14629289,203.85,203.83,4.08924597]
[1756680964711,0.02,203.83,203.8,4.08924597]
[1756680965110,123.02,203.84,203.8,4.08924597]
[1756680965309,2.16629289,203.82,203.8,4.08924597]
[1756680965715,0.02,203.82,203.8,4.08924597]
[1756680965910,0.02,203.82,203.79,11.54924597]
[1756680968724,0.02,203.83,203.79,4.08924597]
[1756680968920,125.16629289,203.84,203.78,4.08924597]
[1756680969220,0.02,203.8,203.77,4.08924597]
[1756680970124,0.02,203.8,203.76,11.47924597]
[1756680971126,0.02,203.8,203.76,4.08924597]
[1756680971329,0.02,203.8,203.77,7.39]
[1756680971722,2.14629289,203.83,203.77,11.47924597]
[1756680971920,123.02,203.84,203.8,4.08924597]
[1756680972119,123.02,203.84,203.81,7.39]
[1756680972326,123.02,203.84,203.79,4.08924597]
[1756680973228,123.02,203.84,203.8,7.39]
[1756680973424,123.02,203.84,203.8,11.47924597]
[1756680973724,123.02,203.84,203.81,7.39]
[1756680973928,123.02,203.84,203.82,7.39]
[1756680974323,123.02,203.84,203.81,4.08924597]
[1756680974623,123.02,203.84,203.82,7.39]
[1756680974819,123.02,203.84,203.81,4.08924597]
[1756680975025,123.02,203.84,203.82,7.39]
[1756680975228,0.02,203.92,203.82,11.47924597]
[1756680975421,123.0,203.91,203.83,4.08924597]
[1756680975619,123.0,203.91,203.84,11.47924597]
[1756680975824,2.14629289,203.9,203.84,11.47924597]
[1756680976029,2.16629289,203.9,203.84,11.47924597]
[1756680976229,2.16629289,203.9,203.84,7.39]
[1756680978229,123.0,203.91,203.84,7.39]
[1756680978432,329.74,203.93,203.86,7.39]
[1756680978631,123.0,203.92,203.87,4.08924597]
[1756680979027,123.0,203.92,203.88,7.39]
[1756680979538,125.14629289,203.92,203.85,4.08924597]
[1756680979828,125.16629289,203.92,203.85,4.08924597]
[1756680980233,123.02,203.92,203.85,4.08924597]
[1756680980433,125.16629289,203.92,203.85,4.08924597]
[1756680982737,125.16629289,203.92,203.84,11.47924597]
[1756680982935,125.16629289,203.92,203.85,4.08924597]
[1756680984036,2.16629289,203.92,203.85,4.08924597]
[1756680984235,122.96,203.91,203.84,11.47924597]
[1756680985538,0.02,203.88,203.84,11.47924597]
[1756680985741,2.14629289,203.89,203.83,4.08924597]
[1756680985742,2.16629289,203.89,203.83,4.08924597]
[1756680987445,0.02,203.89,203.83,4.08924597]
[1756680987947,0.02,203.89,203.82,11.47924597]
[1756680990942,2.14629289,203.87,203.82,4.08924597]
[1756680991142,2.14629289,203.84,203.8,7.39]
[1756680991345,122.94,203.83,203.78,11.47924597]
[1756680992647,122.94,203.83,203.78,4.08924597]
[1756680992844,122.94,203.83,203.79,7.39]
[1756680994448,122.94,203.83,203.78,4.08924597]
[1756680994648,2.14629289,203.81,203.74,4.08924597]
[1756680995450,2.14629289,203.81,203.75,7.39]
[1756680997341,2.14629289,203.78,203.73,4.08924597]
[1756680997545,122.94,203.77,203.73,11.47924597]
[1756680997946,122.97,203.77,203.73,11.47924597]
[1756680998545,0.03,203.76,203.73,4.08924597]
[1756680998752,0.03,203.74,203.7,7.62]
[1756680999351,0.03,203.74,203.68,4.08924597]
[1756680999551,0.03,203.74,203.68,11.70924597]
[1756680999757,121.4,203.74,203.69,4.08924597]
[1756681000446,121.4,203.74,203.7,7.62]
[1756681000751,121.43,203.74,203.7,7.62]
[1756681000952,121.43,203.74,203.69,7.62]
[1756681001152,121.43,203.74,203.68,4.08924597]
[1756681001350,117.4,203.76,203.69,7.62]
[1756681004253,0.03,203.73,203.69,7.62]
[1756681004456,2.14629289,203.74,203.69,7.62]
[1756681004754,0.03,203.73,203.69,7.62]
[1756681005149,0.03,203.73,203.67,7.62]
[1756681010957,2.17629289,203.73,203.67,7.62]
[1756681011362,2.14629289,203.73,203.67,7.62]
[1756681012152,329.86,203.79,203.67,9.76629289]
[1756681012355,2.14629289,203.78,203.68,7.62]
[1756681012560,122.92,203.77,203.68,7.62]
[1756681012761,2.14629289,203.78,203.68,7.62]
[1756681013056,125.06629289,203.78,203.68,7.62]
[1756681013262,0.03,203.77,203.68,7.62]
[1756681019567,122.9,203.76,203.68,7.62]
[1756681020872,2.14629289,203.78,203.68,7.62]
[1756681021072,122.9,203.77,203.68,7.62]
[1756681022375,122.93,203.77,203.68,7.62]
[1756681023378,122.93,203.77,203.68,11.70924597]
[1756681024778,122.93,203.77,203.68,7.62]
[1756681025477,122.93,203.77,203.68,11.70924597]
[1756681025878,0.03,203.74,203.68,11.70924597]
[1756681026078,0.03,203.74,203.68,7.62]
[1756681028080,0.03,203.71,203.65,11.53924597]
[1756681028274,122.89,203.71,203.65,11.53924597]
[1756681030378,122.89,203.71,203.67,7.45]
[1756681031877,0.03,203.7,203.67,7.45]
[1756681033282,0.03,203.7,203.67,11.53924597]
[1756681034878,0.03,203.68,203.65,4.08924597]
[1756681035387,0.03,203.75,203.66,7.45]
[1756681035582,0.03,203.75,203.69,7.45]
[1756681036283,0.03,203.75,203.69,11.57425276]
[1756681037179,0.03,203.75,203.69,7.45]
[1756681037485,0.03,203.75,203.69,11.57425276]
[1756681040386,0.03,203.75,203.71,7.45]
[1756681040783,0.03,203.75,203.7,4.12425276]
[1756681040784,2.14629289,203.73,203.69,4.12425276]
[1756681041089,0.03,203.72,203.68,4.12425276]
[1756681041288,122.85,203.71,203.68,4.12425276]
[1756681041686,2.14629289,203.7,203.65,4.12425276]
[1756681041888,2.17629289,203.67,203.65,4.12425276]
[1756681045390,2.17629289,203.67,203.64,11.57425276]
[1756681046391,0.03,203.66,203.64,4.12425276]
[1756681046796,2.14629289,203.67,203.64,11.57425276]
[1756681047091,2.14629289,203.67,203.65,7.45]
[1756681051798,2.14629289,203.67,203.64,7.45]
[1756681051999,0.03,203.73,203.64,7.45]
[1756681052198,28.94,203.7,203.65,7.45]
[1756681052398,28.94,203.7,203.64,4.12425276]
[1756681053100,28.94,203.7,203.65,7.45]
[1756681053304,28.94,203.7,203.64,4.12425276]
[1756681053502,28.94,203.7,203.65,7.45]
[1756681053704,28.94,203.7,203.64,4.12425276]
[1756681053898,28.94,203.7,203.65,7.45]
[1756681054200,28.94,203.7,203.64,4.12425276]
[1756681054706,28.94,203.7,203.65,7.45]
[1756681055204,28.94,203.7,203.64,4.12425276]
[1756681055399,28.94,203.7,203.65,7.45]
[1756681055797,28.94,203.7,203.64,4.12425276]
[1756681056097,28.94,203.7,203.65,7.45]
[1756681057002,28.94,203.7,203.64,4.12425276]
[1756681057198,0.03,203.73,203.65,7.45]
[1756681057402,0.03,203.73,203.67,11.57425276]
[1756681057901,0.03,203.76,203.68,7.45]
[1756681058100,0.03,203.76,203.69,7.32]
[1756681058406,332.05629289,203.79,203.72,7.32]
[1756681062211,2.19629289,203.82,203.73,7.32]
[1756681062406,122.74,203.82,203.75,4.12425276]
[1756681062706,122.74,203.82,203.76,7.32]
[1756681065011,124.93629289,203.82,203.76,7.32]
[1756681066115,122.79,203.82,203.76,7.32]
[1756681066510,124.93629289,203.82,203.76,7.32]
[1756681067207,122.79,203.82,203.76,7.32]
[1756681067403,124.93629289,203.82,203.76,7.32]
[1756681067910,122.79,203.82,203.76,7.32]
[1756681070416,122.74,203.82,203.76,7.32]
[1756681070807,122.74,203.82,203.77,2.14629289]
[1756681071411,122.74,203.82,203.78,7.32]
[1756681072220,0.05,203.85,203.81,7.32]
[1756681072521,0.05,203.85,203.8,2.14629289]
[1756681072722,0.05,203.87,203.77,13.59054565]
[1756681073815,0.05,203.87,203.78,7.32]
[1756681075621,0.05,203.87,203.81,7.32]
[1756681077621,122.64,203.88,203.81,7.32]
[1756681078524,0.05,203.87,203.81,7.32]
[1756681081624,0.05,203.84,203.77,7.32]
[1756681081926,0.05,203.81,203.77,7.32]
[1756681082524,0.05,203.81,203.75,7.32]
[1756681086424,0.05,203.79,203.75,7.32]
[1756681086624,0.05,203.79,203.71,7.32]
[1756681087425,122.61,203.82,203.71,7.32]
[1756681087620,2.14629289,203.81,203.71,7.32]
[1756681089130,0.03,203.87,203.71,7.32]
[1756681089431,2.14629289,203.84,203.73,7.35]
[1756681090537,0.03,203.85,203.76,7.35]
[1756681090727,2.14629289,203.88,203.76,7.35]
[1756681090929,81.80629289,203.88,203.79,7.35]
[1756681092229,79.66,203.88,203.79,7.35]
[1756681093228,0.03,203.87,203.79,7.35]
[1756681095129,2.14629289,203.86,203.79,7.35]
[1756681096935,2.17629289,203.87,203.79,7.35]
[1756681099943,0.03,203.87,203.79,7.35]
[1756681100134,2.17629289,203.87,203.79,7.35]
[1756681102246,2.17629289,203.87,203.79,11.47425276]
[1756681102448,2.17629289,203.87,203.79,7.35]
[1756681103748,2.17629289,203.87,203.79,11.47425276]
[1756681104249,2.17629289,203.87,203.79,4.12425276]
[1756681104449,2.17629289,203.87,203.8,7.35]
[1756681106057,0.03,203.87,203.8,7.35]
[1756681106359,79.66,203.88,203.81,7.35]
[1756681111361,329.98,203.91,203.81,9.49629289]
[1756681111658,452.36,203.91,203.85,11.47425276]
[1756681112356,452.36,203.91,203.85,7.35]
[1756681113160,452.36,203.91,203.85,11.47425276]
[1756681113555,122.38,203.91,203.86,4.12425276]
[1756681113761,122.38,203.91,203.87,7.35]
[1756681114360,122.38,203.91,203.86,4.12425276]
[1756681114549,122.38,203.91,203.88,7.35]
[1756681114949,122.38,203.91,203.87,6.27054565]
[1756681115357,122.38,203.91,203.88,7.35]
[1756681116353,122.38,203.91,203.87,6.27054565]
[1756681117258,122.38,203.91,203.87,2.14629289]
[1756681117861,122.38,203.91,203.88,7.75]
[1756681118060,0.03,203.9,203.87,2.14629289]
[1756681118260,0.03,203.9,203.87,7.75]
[1756681118462,122.38,203.91,203.85,4.12425276]
[1756681118659,0.03,203.9,203.84,4.12425276]
[1756681118965,0.03,203.88,203.81,4.12425276]
[1756681119154,0.03,203.88,203.8,7.75]
[1756681120665,2.17629289,203.88,203.8,7.75]
[1756681121870,0.03,203.84,203.78,4.12425276]
[1756681122165,0.03,203.84,203.76,11.87425276]
[1756681123167,2.17629289,203.82,203.76,11.87425276]
[1756681124566,2.14629289,203.82,203.76,11.87425276]
[1756681125769,23.67629289,203.85,203.76,11.87425276]
[1756681128669,2.17629289,203.85,203.76,11.87425276]
[1756681128869,36.07,203.85,203.77,4.12425276]
[1756681129174,36.07,203.85,203.78,7.75]
[1756681130773,2.14629289,203.84,203.78,7.75]
[1756681130973,0.03,203.83,203.78,7.75]
[1756681131375,2.14629289,203.84,203.78,7.75]
[1756681131573,2.17629289,203.84,203.78,7.75]
[1756681134174,0.03,203.84,203.78,7.75]
[1756681135177,38.18629289,203.85,203.78,7.75]
[1756681135372,0.03,203.88,203.8,7.75]
[1756681140279,0.85393534,203.91,203.8,7.75]
[1756681140486,2.14629289,203.94,203.87,7.75]
[1756681141387,0.03,203.93,203.87,7.75]
[1756681144187,0.03,203.9,203.83,11.87206131]
[1756681144386,37.19,203.9,203.83,7.75]
[1756681144888,37.16,203.9,203.83,7.75]
[1756681146490,37.19,203.9,203.83,7.75]
[1756681147191,39.33629289,203.9,203.83,7.75]
[1756681148090,37.19,203.9,203.83,7.75]
[1756681148295,37.16,203.9,203.83,7.75]
[1756681148490,37.16,203.9,203.84,7.44]
[1756681148693,2.14629289,203.97,203.85,7.44]
[1756681148889,61.44,203.96,203.86,11.56206131]
[1756681149084,61.47,203.96,203.87,7.44]
[1756681151896,2.17629289,203.94,203.87,7.44]
[1756681156100,61.44,203.96,203.87,7.44]
[1756681156298,61.47,203.96,203.87,7.44]
[1756681158501,63.61629289,203.96,203.87,7.44]
[1756681159202,61.47,203.96,203.87,7.44]
[1756681159405,63.61629289,203.96,203.87,7.44]
[1756681161900,63.58629289,203.96,203.87,7.44]
[1756681162104,2.14629289,203.93,203.87,7.44]
[1756681162308,2.17629289,203.93,203.87,7.44]
[1756681165205,0.03,203.93,203.87,7.44]
[1756681165408,2.17629289,203.93,203.87,7.44]
[1756681167208,2.17629289,203.93,203.83,6.2683542]
[1756681167209,0.03,203.92,203.84,7.44]
[1756681167408,2.14629289,203.9,203.84,7.44]
[1756681168504,0.03,203.92,203.84,7.44]
[1756681168704,2.14629289,203.91,203.84,7.44]
[1756681169203,2.14629289,203.95,203.84,7.44]
[1756681169412,65.34,203.94,203.85,7.44]
[1756681169613,65.34,203.94,203.86,2.14629289]
[1756681169819,0.03,203.96,203.87,7.44]
[1756681170019,106.19,203.96,203.87,7.44]
[1756681170517,0.03,203.96,203.87,7.44]
[1756681170717,0.03,203.96,203.88,7.44]
[1756681173823,2.14629289,203.95,203.88,7.44]
[1756681176321,122.04,203.97,203.83,7.44]
[1756681176322,2.17629289,203.89,203.83,7.44]
[1756681176523,122.05,203.88,203.83,7.44]
[1756681177022,2.14629289,203.86,203.83,7.44]
[1756681177711,2.14629289,203.87,203.79,7.44]
[1756681178120,2.14629289,203.87,203.8,7.71]
[1756681187327,0.03,203.83,203.8,7.71]
[1756681187830,2.14629289,203.84,203.78,7.71]
[1756681198837,2.17629289,203.84,203.78,7.71]
[1756681200239,0.03,203.84,203.78,7.71]
[1756681200437,2.14629289,203.81,203.78,7.71]
[1756681200641,2.17629289,203.81,203.78,7.71]
[1756681200942,0.03,203.8,203.74,7.71]
[1756681201143,2.14629289,203.78,203.72,7.71]
[1756681204250,32.85,203.8,203.72,7.71]
[1756681204449,2.14629289,203.79,203.72,7.71]
[1756681204946,2.17629289,203.76,203.7,7.71]
[1756681205347,56.35,203.8,203.7,7.71]
[1756681205551,56.35,203.8,203.71,7.71]
[1756681208446,2.14629289,203.78,203.71,7.71]
[1756681208652,2.17629289,203.78,203.71,7.71]
[1756681209152,0.03,203.77,203.71,7.71]
[1756681209351,2.14629289,203.75,203.67,4.12144349]
[1756681209549,2.14629289,203.75,203.68,7.96]
[1756681210453,2.14629289,203.78,203.68,7.96]
[1756681211156,0.03,203.77,203.68,7.96]
[1756681212950,2.14629289,203.75,203.68,7.96]
[1756681213543,0.03,203.77,203.68,7.96]
[1756681213746,329.76,203.88,203.68,7.96]
[1756681213949,2.14629289,203.85,203.72,7.96]
[1756681214152,2.14629289,203.82,203.72,7.96]
[1756681214853,2.17629289,203.82,203.72,7.96]
[1756681217056,0.03,203.82,203.72,7.96]
[1756681217251,2.17629289,203.82,203.73,7.96]
[1756681217648,0.03,203.82,203.73,7.96]
[1756681217956,45.26629289,203.83,203.74,7.96]
[1756681218357,2.14629289,203.83,203.75,7.96]
[1756681218754,0.03,203.85,203.75,10.10629289]
[1756681218959,124.02629289,203.86,203.76,7.96]
[1756681219258,124.02629289,203.86,203.75,6.26773638]
[1756681219259,124.02629289,203.86,203.78,4.12144349]
[1756681219457,124.02629289,203.86,203.79,7.96]
[1756681219658,329.79,203.88,203.79,7.96]
[1756681219858,2.14629289,203.86,203.79,7.96]
[1756681221362,2.14629289,203.87,203.79,7.96]
[1756681225566,0.03,203.86,203.79,7.96]
[1756681231862,0.03,203.83,203.79,7.96]
[1756681232062,2.14629289,203.81,203.75,7.96]
[1756681232255,2.17629289,203.81,203.75,7.96]
[1756681232557,0.03,203.81,203.75,7.96]
[1756681232762,2.14629289,203.79,203.73,4.12144349]
[1756681233157,2.14629289,203.79,203.74,7.96]
[1756681233360,2.14629289,203.79,203.73,4.12144349]
[1756681233566,2.14629289,203.79,203.73,7.96]
[1756681233957,2.17629289,203.79,203.73,7.96]
[1756681234264,2.17629289,203.76,203.73,7.96]
[1756681234667,83.87629289,203.76,203.73,7.96]
[1756681234964,81.73,203.76,203.73,7.96]
[1756681235360,83.87629289,203.76,203.73,7.96]
[1756681235762,83.87629289,203.76,203.7,7.96]
[1756681236062,81.73,203.76,203.7,7.96]
[1756681236265,2.14629289,203.75,203.69,7.96]
[1756681237565,2.17629289,203.72,203.68,4.12144349]
[1756681237763,0.03,203.71,203.65,4.12144349]
[1756681237962,0.03,203.71,203.64,7.96]
[1756681238366,2.14629289,203.69,203.62,4.12144349]
[1756681238668,2.14629289,203.69,203.63,7.24]
[1756681238962,31.24629289,203.73,203.64,4.12144349]
[1756681239164,31.24629289,203.73,203.65,7.24]
[1756681239666,29.1,203.73,203.65,7.24]
[1756681239865,2.14629289,203.73,203.65,7.24]
[1756681240068,49.44,203.73,203.65,7.24]
[1756681240266,51.58629289,203.73,203.65,7.24]
[1756681240659,72.92629289,203.73,203.65,7.24]
[1756681241767,2.14629289,203.73,203.66,7.24]
[1756681242564,2.18629289,203.73,203.66,7.24]
[1756681248166,2.14629289,203.7,203.64,7.24]
[1756681248772,2.18629289,203.67,203.61,7.24]
[1756681250072,0.04,203.74,203.61,7.24]
[1756681250365,0.04,203.71,203.61,7.24]
[1756681250570,2.14629289,203.7,203.61,7.24]
[1756681251163,2.14629289,203.73,203.62,4.12144349]
[1756681251368,23.26,203.75,203.65,7.24]
[1756681254366,2.14629289,203.74,203.65,7.24]
[1756681258674,2.18629289,203.71,203.65,7.24]
[1756681260481,23.22,203.75,203.65,7.24]
[1756681260482,2.14629289,203.74,203.65,7.24]
[1756681263780,0.04,203.73,203.65,7.24]
[1756681265485,22.96,203.73,203.65,7.24]
[1756681266382,44.74,203.73,203.65,7.24]
[1756681266886,0.04,203.73,203.65,7.24]
[1756681267381,2.18629289,203.73,203.65,7.24]
[1756681269583,0.03,203.72,203.65,7.24]
[1756681269787,0.03,203.69,203.61,7.47]
[1756681270185,0.03,203.69,203.61,11.59144349]
[1756681271388,0.03,203.69,203.61,11.58736233]
[1756681271892,28.12,203.7,203.62,7.47]
[1756681272189,30.26629289,203.7,203.62,7.47]
[1756681273387,30.26629289,203.7,203.62,11.58736233]
[1756681274287,50.46,203.72,203.64,11.58736233]
[1756681274494,121.72,203.72,203.65,7.47]
[1756681276191,121.72,203.72,203.65,11.58736233]
[1756681276587,121.72,203.72,203.65,7.47]
[1756681276990,2.14629289,203.7,203.64,11.58736233]
[1756681277185,2.17629289,203.7,203.65,4.11736233]
[1756681277390,2.17629289,203.7,203.66,7.47]
[1756681277991,0.03,203.7,203.66,7.47]
[1756681280785,0.03,203.7,203.65,4.11736233]
[1756681281088,0.03,203.7,203.66,7.47]
[1756681281288,0.03,203.7,203.66,11.58736233]
[1756681281689,0.03,203.7,203.66,4.11736233]
[1756681282193,0.03,203.7,203.67,7.47]
[1756681282790,2.14629289,203.68,203.66,4.11736233]
[1756681283094,2.14629289,203.68,203.64,11.58736233]
[1756681283095,0.03,203.67,203.64,11.58736233]
[1756681283284,2.17629289,203.68,203.65,7.47]
[1756681283689,0.03,203.68,203.65,7.47]
[1756681285598,5.45466711,203.79,203.64,4.11736233]
[1756681285898,2.14629289,203.72,203.66,7.47]